[Event "GER-ch Youth-U18w 2022"]
[Site "Willingen"]
[Date "2022.06.10"]
[Round "8.11"]
[White "Sokyrko, Sofiia"]
[Black "Kosak, Karolina"]
[Result "0-1"]
[ECO "C56"]
[WhiteElo "1368"]
[BlackElo "1471"]
[Annotator "NA RC COMBH"]
[PlyCount "56"]
[EventDate "2022.06.05"]
[EventType "swiss"]
[EventRounds "9"]
[EventCountry "GER"]
[SourceTitle "playchess.com"]
[Source "ChessBase"]
[SourceQuality "1"]
[TimeControl "40/4500+30:900+30"]

1. e4 {[%emt 0:00:00]} e5 {[%emt 0:00:00]} 2. Nf3 {[%emt 0:00:00]} Nc6 {[%emt 0:00:00]} 3. d4 {[%emt 0:00:00]} exd4 {[%emt 0:00:00]} 4. Bc4 {[%emt 0:00:00]} Nf6 {[%emt 0:00:00]} 5. O-O {[%emt 0:00:00]} Nxe4 {[%emt 0:00:00]} 6. Re1 {[%emt 0:00:00]} d5 {[%emt 0:00:00]} 7. Bxd5 {[%emt 0:00:00]} Qxd5 {[%emt 0:00:00]} 8. Nc3 {[%emt 0:00:00]} Qh5 {[%emt 0:00:00]} 9. Nxe4 {[%emt 0:00:00]} Be6 {[%emt 0:00:00]} 10. Neg5 O-O-O {[%emt 0:00:00]} 11. Nxe6 {[%emt 0:00:00]} fxe6 {[%emt 0:00:00]} 12. Rxe6 {[%emt 0:00:00]} Bc5 {[%emt 0:06:09]} 13. Bg5 {[%emt 0:00:00]} Rde8 {[%emt 0:01:58]} 14. Rxe8+ {[%emt 0:00:00]} Rxe8 {[%emt 0:00:34]} 15. Qd3 {[%emt 0:00:00]} Kb8 {[%emt 0:05:17]} 16. a3 {[%emt 0:00:00]} Ne5 {[%emt 0:08:30]} 17. Nxe5 {[%emt 0:00:00]} Rxe5 {[%emt 0:01:15]} 18. Qc4 {[%emt 0:00:00]} Qe2 {[%emt 0:10:01]} 19. Qxe2 {[%emt 0:00:37]} Rxe2 {[%emt 0:00:02]} 20. b4 {[%emt 0:00:16]} Bb6 {[%emt 0:03:11]} 21. Kf1 {[%emt 0:00:47]} Rxc2 {[%emt 0:03:32]} 22. Re1 {[%emt 0:00:09]} a5 {[%emt 0:01:25]} 23. Re7 {[%emt 0:00:17]} h6 {[%emt 0:02:08]} 24. bxa5 {[%emt 0:02:16]} Bxa5 {[%emt 0:02:49]} 25. Bf4 {[%emt 0:00:32]} g5 {[%emt 0:02:28]} 26. Be5 {[%emt 0:00:36]} d3 {[%emt 0:01:18]} 27. f4 {[%emt 0:11:33]} Rc1+ {[%emt 0:00:50]} 28. Kf2 {[%emt 0:00:14]} d2 {[%emt 0:00:57]} 0-1

[Event "GER-ch Youth-U18w 2022"]
[Site "Willingen"]
[Date "2022.06.11"]
[Round "9.1"]
[White "Rudolph, Eva"]
[Black "Dartmann Aubanell, Catriona"]
[Result "1/2-1/2"]
[ECO "C08"]
[WhiteElo "1860"]
[BlackElo "1874"]
[Annotator "NA RC COMBH"]
[PlyCount "46"]
[EventDate "2022.06.05"]
[EventType "swiss"]
[EventRounds "9"]
[EventCountry "GER"]
[SourceTitle "playchess.com"]
[Source "ChessBase"]
[SourceQuality "1"]
[TimeControl "40/4500+30:900+30"]

1. e4 {[%emt 0:00:00]} e6 {[%emt 0:00:00]} 2. d4 {[%emt 0:00:00]} d5 {[%emt 0:00:00]} 3. Nd2 {[%emt 0:00:00]} c5 {[%emt 0:00:00]} 4. exd5 {[%emt 0:00:00]} exd5 {[%emt 0:00:00]} 5. Bb5+ {[%emt 0:00:00]} Nc6 {[%emt 0:00:00]} 6. Ngf3 {[%emt 0:00:00]} cxd4 {[%emt 0:00:00]} 7. O-O {[%emt 0:00:00]} Bd6 {[%emt 0:00:00]} 8. Nb3 {[%emt 0:00:00]} Nge7 {[%emt 0:00:00]} 9. Nbxd4 {[%emt 0:00:21]} O-O {[%emt 0:00:00]} 10. Bd3 {[%emt 0:03:47] 10.h3 is the modern continuation.} h6 {[%emt 0:00:00] was the old line (10...Ng6).} 11. h3 {[%emt 0:03:40]} Re8 {[%emt 0:02:16]} 12. c3 {[%emt 0:07:58]} a6 {[%emt 0:06:51]} 13. Bc2 {[%emt 0:05:01] [#]} h5 $146 {[%emt 0:14:40]} ({Predecessor:} 13... Bc7 14. Re1 Nxd4 15. Qxd4 Be6 16. Bf4 Bxf4 17. Qxf4 Qb6 18. Rab1 Nc6 19. a3 Rad8 {1-0 (49) Sandu,M (2260)-Bucur,D (1956) Mamaia 2019}) 14. Ng5 {[%emt 0:24:33]} (14. Bg5 $16) 14... g6 {[%emt 0:04:07]} 15. Re1 {[%emt 0:12:46]} Nxd4 {[%emt 0:05:04]} 16. Qxd4 {[%emt 0:02:35]} Nf5 {[%emt 0:01:12]} 17. Qd1 {[%emt 0:01:02]} Rxe1+ {[%emt 0:07:10]} 18. Qxe1 {[%emt 0:00:01]} b5 {[%emt 0:01:26]} 19. Nf3 {[%emt 0:01:39]} Qe7 $14 {[%emt 0:06:16]} 20. Qd1 {[%emt 0:01:23]} Bc5 {[%emt 0:12:29]} 21. Bg5 {[%emt 0:01:03]} Qa7 {[%emt 0:00:47]} 22. Qd2 {[%emt 0:00:51]} Kg7 {[%emt 0:06:27]} 23. Rd1 {[%emt 0:04:08]} Be6 {[%emt 0:01:23]} 1/2-1/2

[Event "GER-ch Youth-U18w 2022"]
[Site "Willingen"]
[Date "2022.06.11"]
[Round "9.2"]
[White "Bardorz, Jana"]
[Black "Berghold, Lotta"]
[Result "1-0"]
[ECO "B12"]
[WhiteElo "1974"]
[BlackElo "1482"]
[Annotator "TA"]
[PlyCount "71"]
[EventDate "2022.06.05"]
[EventType "swiss"]
[EventRounds "9"]
[EventCountry "GER"]
[SourceTitle "playchess.com"]
[Source "ChessBase"]
[SourceQuality "1"]
[TimeControl "40/4500+30:900+30"]

{[%evp 10,71,23,13,22,10,15,21,25,18,48,0,19,6,31,39,43,22,23,20,33,42,38,37,95,60,62,62,79,68,98,81,329,341,338,326,329,321,338,293,300,304,415,400,361,247,237,252,252,246,236,219,225,225,222,213,211,181,285,290,354,349,400,387]} 1. e4 {[%emt 0:00:00]} c6 {[%emt 0:00:00]} 2. d4 {[%emt 0:00:00]} d5 {[%emt 0:00:00]} 3. e5 {[%emt 0:00:00]} Bf5 {[%emt 0:00:00]} 4. Nd2 {[%emt 0:00:00]} e6 {[%emt 0:00:00]} 5. Nb3 {[%emt 0:00:00]} Nd7 {[%emt 0:00:00]} 6. Nf3 {[%emt 0:00:00]} a6 {[%emt 0:00:00] B12: Caro-Kann: Advance Variation.} 7. Be3 {[%emt 0:00:00]} Rc8 {[%emt 0:06:12]} 8. Be2 {[%emt 0:00:00]} c5 {[%emt 0:05:08] The position is equal.} 9. dxc5 {[%emt 0:01:35]} Nxc5 10. Nbd4 {[%emt 0:04:07]} (10. O-O $14) 10... Bg6 {[%emt 0:05:37]} 11. c3 Ne7 {[%emt 0:03:55]} 12. O-O {[%emt 0:02:51] [#]} Bh5 $146 {[%emt 0:16:16]} ({Predecessor:} 12... Nf5 13. Nxf5 Bxf5 14. Nd4 Bg6 15. f4 Be7 16. f5 exf5 17. Nxf5 Bxf5 18. Rxf5 O-O {1-0 (55) Nevednichy,V (2551)-Knechtel,R (2284) Aschach 2015}) 13. Nd2 {[%emt 0:09:09]} Bxe2 {[%emt 0:00:16]} 14. Qxe2 {[%emt 0:00:17]} Ng6 {[%emt 0:09:34]} 15. f4 {[%emt 0:02:29]} Be7 {[%emt 0:05:50]} 16. f5 {[%emt 0:11:34]} exf5 {[%emt 0:00:57]} (16... Nxe5 $14 17. fxe6 (17. Bf4 Nc6 $11) 17... O-O) 17. Nxf5 $16 {[%emt 0:03:01]} O-O {[%emt 0:01:33]} 18. Qh5 {[%emt 0:03:00] [#] aiming for Rf3.} Ne6 {[%emt 0:02:22]} (18... Nd3 $2 19. Rf3 Bh4 20. Rh3 $18) 19. Nf3 {[%emt 0:06:34][%cal Bd2f3,Bf3d4,Bd4e6][%mdl 32] White is much more active.} Rc4 {[%emt 0:05:55]} 20. N3d4 {[%emt 0:03:41] Threatens to win with Rf3.} Bg5 $2 {[%emt 0:04:12] Black cannot hold the game after this.} (20... Re8 $16) 21. Nxe6 $18 {[%emt 0:06:19]} Bxe3+ {[%emt 0:03:23]} 22. Nxe3 {[%emt 0:02:48] Chess con chili.} fxe6 {[%emt 0:02:29]} 23. Nxc4 {[%emt 0:01:14]} dxc4 {[%emt 0:00:22]} 24. Kh1 {[%emt 0:02:10]} Nf4 {[%emt 0:03:01]} 25. Qg4 {[%emt 0:01:58]} Qd2 {[%emt 0:01:49]} 26. Rad1 {[%emt 0:01:40]} Qe3 {[%emt 0:00:28]} 27. g3 {[%emt 0:05:59]} Qe4+ {[%emt 0:00:21]} 28. Qf3 {[%emt 0:00:05]} Qxf3+ {[%emt 0:01:12]} 29. Rxf3 {[%emt 0:00:04]} Nd3 {[%emt 0:00:36]} 30. Rxf8+ {[%emt 0:03:31]} Kxf8 {[%emt 0:00:04][%mdl 4096] Endgame KR-KN} 31. Kg2 {[%emt 0:01:55] Inhibits Nf2. Hoping for b3.} Ke7 {[%emt 0:00:41]} 32. b3 {[%emt 0:01:06]} Nxe5 {[%emt 0:01:10]} 33. h3 {[%emt 0:04:53]} b5 {[%emt 0:01:08]} (33... b6 $142 34. Kf2 cxb3) 34. Kf2 {[%emt 0:00:35]} Nd3+ {[%emt 0:03:22]} 35. Ke3 {[%emt 0:00:41]} e5 {[%emt 0:02:30]} 36. Rb1 {[%emt 0:04:15] Weighted Error Value: White=0.11 (very precise) /Black=0.36} 1-0

[Event "GER-ch Youth-U18w 2022"]
[Site "Willingen"]
[Date "2022.06.11"]
[Round "9.3"]
[White "Falke, Ornella"]
[Black "Basovskiy, Jana"]
[Result "0-1"]
[ECO "A50"]
[WhiteElo "1844"]
[BlackElo "1938"]
[Annotator "TA"]
[PlyCount "90"]
[EventDate "2022.06.05"]
[EventType "swiss"]
[EventRounds "9"]
[EventCountry "GER"]
[SourceTitle "playchess.com"]
[Source "ChessBase"]
[SourceQuality "1"]
[TimeControl "40/4500+30:900+30"]

{[%evp 10,90,75,16,12,0,0,-187,8,2,45,7,47,-16,-10,-20,-15,-23,-10,-21,-21,-57,-50,-122,-108,-170,-63,-165,-68,-60,-61,-59,0,0,0,-236,-246,-222,-233,-320,-309,-567,-584,-575,-586,-586,-544,-570,-580,-566,-524,-550,-531,-665,-495,-487,-546,-541,-541,-541,-519,-421,-415,-608,-615,-565,-418,-525,-496,-582,-560,-792,-793,-789,-766,-741,-734,-581,-579,-908,-893,-1533,-1045]} 1. d4 {[%emt 0:00:00][%cal Bd2d4,Bd4d5][%mdl 32]} Nf6 {[%emt 0:00:00]} 2. c4 {[%emt 0:00:00]} Nc6 {[%emt 0:00:00]} 3. Nc3 {[%emt 0:00:00]} e5 {[%emt 0:00:00]} 4. d5 {[%emt 0:00:00]} Ne7 {[%emt 0:00:00]} 5. e4 {[%emt 0:00:00]} Ng6 {[%emt 0:00:00]} 6. a3 {[%emt 0:00:00]} (6. h4 $16) 6... Bc5 $11 {[%emt 0:00:00] A50: Queen's Fianchetto Defence (1 d4 Nf6 2 c4 b6).} 7. Bd3 {[%emt 0:02:16]} a5 {[%emt 0:00:00] Against b4} 8. Nge2 $2 {[%emt 0:01:08] [#]} (8. Nf3 $11 {and White stays safe.}) 8... O-O $2 {[%emt 0:00:00]} (8... Ng4 $19 9. Be3 Bxe3 10. fxe3 Nxe3) 9. O-O {[%emt 0:06:19] [#]} Nh5 $146 {[%emt 0:00:00]} (9... d6 $5 {[%cal Rf6g4]}) ({Predecessor:} 9... d6 10. h3 Nh5 11. Kh2 Qh4 12. Qe1 Nhf4 13. Nxf4 Nxf4 14. Bxf4 Qxf4+ 15. Kg1 Bxh3 16. gxh3 {0-1 (25) Lesjak,D (1842)-Semrl,M (2108) Ljubljana 2013}) 10. Kh1 {[%emt 0:03:36]} (10. Na4 $5 {[%cal Ra4c5]} Be7 11. Ng3 $11) 10... Be7 {[%emt 0:20:49]} 11. g4 {[%emt 0:23:49]} (11. g3 $14) 11... Nhf4 {[%emt 0:04:01]} 12. Nxf4 exf4 {[%emt 0:00:31]} 13. Ne2 {[%emt 0:01:01]} Bg5 {[%emt 0:00:21]} 14. Nd4 {[%emt 0:03:02]} (14. h4 Bh6 15. g5 Bxg5 16. hxg5 Qxg5 17. f3 Qh5+ 18. Kg2 Qg5+ 19. Kh1 Qh5+ 20. Kg2 Qg5+ 21. Kh1) 14... d6 {[%emt 0:03:56]} 15. h3 {[%emt 0:01:42]} Ne5 {[%emt 0:01:10][%cal Oh7h5]} 16. b3 {[%emt 0:01:24]} (16. Be2 $15) 16... Qf6 {[%emt 0:01:05][%cal Oh7h5]} 17. Bb2 {[%emt 0:03:21]} (17. Rg1 $17) 17... h5 {[%emt 0:08:35]} ({Better is} 17... f3 $19 {Strongly threatening ...Qh6.} 18. Rg1 Qh6) 18. f3 {[%emt 0:01:24]} (18. gxh5 Bxh3 19. Rg1) (18. gxh5 $15 Bxh3 19. Rg1) 18... hxg4 {[%emt 0:02:22]} (18... g6 19. Kg2 Bh4) (18... g6 $19 {...Kg7 is the strong threat.} 19. Kg1 Qh8) 19. hxg4 $15 {[%emt 0:05:55]} Qh6+ {[%emt 0:04:42]} 20. Kg1 {[%emt 0:04:49]} Qh4 {[%emt 0:13:55]} ({Black should play} 20... f5 $15 21. Nxf5 Bxf5 22. gxf5 Kf7 23. Bxe5 Rh8) 21. Rf2 $1 $11 {[%emt 0:00:43]} Bxg4 {[%emt 0:01:36][%cal Of7f5]} 22. fxg4 {[%emt 0:02:22] Black converts the advantage convincingly.} (22. Be2 $11 {and White has nothing to worry.}) 22... Qg3+ $19 {[%emt 0:00:08]} 23. Rg2 {[%emt 0:00:58]} Qe3+ {[%emt 0:00:13]} ({And not} 23... Qxd3 24. Qxd3 Nxd3 25. Nf3 Nxb2 26. Nxg5 $17) 24. Kh1 {[%emt 0:01:38]} Nxd3 {[%emt 0:00:19]} 25. Nf5 $2 {[%emt 0:01:04]} (25. Qe2 {is a better defense.} Bf6 26. Nf5 Qxe2 27. Rxe2 Nxb2 28. g5) 25... Qh3+ {[%emt 0:09:10]} 26. Rh2 {[%emt 0:05:07]} Nf2+ {[%emt 0:00:17]} 27. Kg1 {[%emt 0:00:05]} Nxd1 {[%emt 0:02:26]} 28. Rxh3 {[%emt 0:03:17]} Nxb2 {[%emt 0:00:02]} 29. Rb1 {[%emt 0:00:20]} g6 {[%emt 0:00:46]} ({Inferior is} 29... Bf6 30. g5 Bxg5 31. Rxb2 $15) 30. Rxb2 {[%emt 0:04:30]} gxf5 {[%emt 0:00:06]} 31. Rh5 {[%emt 0:00:55]} f6 {[%emt 0:00:41]} 32. exf5 {[%emt 0:01:32]} Kg7 {[%emt 0:01:36]} 33. Re2 {[%emt 0:01:50]} Rae8 {[%emt 0:00:07] Inhibits Re7+.} 34. Re6 {[%emt 0:00:17]} Rxe6 {[%emt 0:05:01]} 35. dxe6 {[%emt 0:00:15][%mdl 4096] Endgame KRB-KR} Rd8 {[%emt 0:01:22]} 36. Rh2 {[%emt 0:00:32]} (36. Rh3 $142) 36... d5 {[%emt 0:00:24]} 37. Rd2 {[%emt 0:00:24]} c6 {[%emt 0:00:38]} 38. Kf2 {[%emt 0:00:11]} Kf8 {[%emt 0:03:38] Black is clearly winning.} 39. Kf3 {[%emt 0:00:13]} Ke7 {[%emt 0:00:22]} 40. Rh2 {[%emt 0:00:59]} dxc4 {[%emt 0:00:35] [#] And now ...Rd3+ would win.} 41. Rh7+ {[%emt 0:15:12]} Kd6 {[%emt 0:15:27]} 42. bxc4 {[%emt 0:00:54]} Kc5 {[%emt 0:00:00]} 43. Rd7 {[%emt 0:00:00]} Rh8 {[%emt 0:00:00] aiming for ...Rh3+.} 44. Rxb7 {[%emt 0:00:00]} Rh3+ {[%emt 0:00:00]} 45. Kf2 {[%emt 0:00:00]} Rxa3 {[%emt 0:00:00] Weighted Error Value: White=0.64/Black=0.37} 0-1

[Event "GER-ch Youth-U18w 2022"]
[Site "Willingen"]
[Date "2022.06.11"]
[Round "9.4"]
[White "Cheredzhiyska, Iva"]
[Black "Heutling, Elina"]
[Result "1/2-1/2"]
[ECO "B23"]
[WhiteElo "1696"]
[BlackElo "1798"]
[Annotator "NA RC COMBH"]
[PlyCount "151"]
[EventDate "2022.06.05"]
[EventType "swiss"]
[EventRounds "9"]
[EventCountry "GER"]
[SourceTitle "playchess.com"]
[Source "ChessBase"]
[SourceQuality "1"]
[TimeControl "40/4500+30:900+30"]

1. e4 {[%emt 0:00:00]} c5 {[%emt 0:00:00]} 2. Nc3 {[%emt 0:00:00]} d6 {[%emt 0:00:00]} 3. f4 {[%emt 0:00:00]} g6 {[%emt 0:00:00]} 4. Nf3 {[%emt 0:00:00]} Bg7 {[%emt 0:00:00]} 5. Bb5+ {[%emt 0:00:00]} Bd7 {[%emt 0:00:00]} 6. Bc4 {[%emt 0:00:00]} Nf6 {[%emt 0:00:00]} 7. e5 {[%emt 0:00:58]} dxe5 {[%emt 0:00:00]} 8. fxe5 {[%emt 0:05:21]} Nh5 {[%emt 0:19:07]} 9. Bxf7+ {[%emt 0:09:17]} Kxf7 {[%emt 0:01:36]} 10. e6+ {[%emt 0:00:29]} Ke8 {[%emt 0:09:01]} 11. exd7+ {[%emt 0:01:18]} Qxd7 {[%emt 0:01:16]} 12. O-O {[%emt 0:01:30]} Nc6 {[%emt 0:02:10]} 13. d3 {[%emt 0:02:21]} Rf8 {[%emt 0:07:35]} 14. Kh1 {[%emt 0:10:20]} Nf6 {[%emt 0:10:45]} 15. Bg5 {[%emt 0:10:11]} Kf7 {[%emt 0:05:25]} 16. Ne4 {[%emt 0:07:45]} b6 {[%emt 0:00:31]} 17. c3 {[%emt 0:06:01]} Qd5 {[%emt 0:06:40]} 18. Nf2 {[%emt 0:04:53]} Kg8 {[%emt 0:04:43]} 19. Qd2 {[%emt 0:01:24]} Rad8 {[%emt 0:04:51]} 20. a3 {[%emt 0:02:43]} c4 {[%emt 0:07:45]} 21. Rad1 {[%emt 0:06:20]} Qf5 {[%emt 0:01:43]} 22. Qe2 {[%emt 0:02:21]} cxd3 {[%emt 0:00:46]} 23. Rxd3 {[%emt 0:01:47]} Rxd3 {[%emt 0:00:39]} 24. Nxd3 {[%emt 0:02:33]} Qb5 {[%emt 0:00:59]} 25. Re1 {[%emt 0:01:52]} h6 {[%emt 0:00:31]} 26. Bc1 {[%emt 0:03:59]} Rd8 {[%emt 0:00:26]} 27. Qe6+ {[%emt 0:00:38]} Kh7 {[%emt 0:00:34]} 28. Nde5 {[%emt 0:01:34]} Rd6 {[%emt 0:00:42]} 29. Qc4 {[%emt 0:00:59]} Qxc4 {[%emt 0:00:39]} 30. Nxc4 {[%emt 0:00:04]} Rd5 {[%emt 0:00:38]} 31. h3 {[%emt 0:00:32]} Nh5 {[%emt 0:00:39]} 32. g4 {[%emt 0:00:46]} Nf6 {[%emt 0:00:37]} 33. Nce5 {[%emt 0:01:38]} Nxe5 {[%emt 0:00:23]} 34. Nxe5 {[%emt 0:00:09]} Nd7 {[%emt 0:00:52]} 35. Nc6 {[%emt 0:00:52]} Ne5 {[%emt 0:00:46]} 36. Nxe5 {[%emt 0:01:11]} Bxe5 {[%emt 0:00:20]} 37. Kg2 {[%emt 0:00:37]} Bf6 {[%emt 0:00:08]} 38. Re2 {[%emt 0:01:01]} Rd1 {[%emt 0:00:43]} 39. Bf4 {[%emt 0:00:15]} Kg7 {[%emt 0:00:32]} 40. Bb8 {[%emt 0:00:29]} a6 {[%emt 0:00:07]} 41. Bg3 {[%emt 0:00:00]} Kf7 {[%emt 0:00:00]} 42. Bf4 {[%emt 0:00:00]} h5 {[%emt 0:00:44]} 43. g5 {[%emt 0:00:00]} Bg7 {[%emt 0:01:02]} 44. h4 {[%emt 0:02:06]} e6 {[%emt 0:02:59]} 45. Be3 {[%emt 0:02:19]} Rd6 {[%emt 0:06:24]} 46. a4 {[%emt 0:00:55]} e5 {[%emt 0:00:59]} 47. Kf3 {[%emt 0:01:23]} Ke6 {[%emt 0:00:50]} 48. Ke4 {[%emt 0:00:13]} Rc6 {[%emt 0:02:48]} 49. Kd3 {[%emt 0:03:11]} Kd5 {[%emt 0:01:31]} 50. Bf2 {[%emt 0:01:20]} b5 {[%emt 0:00:54]} 51. axb5 {[%emt 0:01:44]} axb5 {[%emt 0:00:01]} 52. Re4 {[%emt 0:01:06]} Rc4 {[%emt 0:00:38]} 53. Rxc4 {[%emt 0:00:22]} bxc4+ {[%emt 0:00:01]} 54. Kc2 {[%emt 0:03:25]} Ke4 {[%emt 0:00:26]} 55. b3 {[%emt 0:00:44]} cxb3+ {[%emt 0:00:13]} 56. Kxb3 {[%emt 0:00:04]} Kd3 {[%emt 0:00:15]} 57. c4 {[%emt 0:00:42]} e4 {[%emt 0:01:35]} 58. c5 {[%emt 0:00:22]} Be5 {[%emt 0:00:17]} 59. c6 {[%emt 0:00:48]} e3 {[%emt 0:00:35]} 60. Be1 {[%emt 0:00:35]} Bc7 {[%emt 0:00:54]} 61. Kb4 {[%emt 0:01:16]} Ke2 {[%emt 0:00:19]} 62. Bc3 {[%emt 0:00:20]} Bg3 {[%emt 0:02:32]} 63. Kc5 {[%emt 0:00:41]} Kf3 {[%emt 0:01:12]} 64. Kd5 {[%emt 0:01:01]} e2 {[%emt 0:00:23]} 65. Ke6 {[%emt 0:00:16]} Ke4 {[%emt 0:00:44]} 66. Kf7 {[%emt 0:01:12]} Kf5 {[%emt 0:00:24]} 67. Be1 {[%emt 0:00:33]} Be5 {[%emt 0:00:17]} 68. Ke7 {[%emt 0:00:23]} Kg4 {[%emt 0:00:26]} 69. Kd7 {[%emt 0:01:08]} Bg3 {[%emt 0:00:18]} 70. c7 {[%emt 0:00:56]} Bxe1 {[%emt 0:00:24]} 71. c8=Q {[%emt 0:00:11]} Bg3 {[%emt 0:00:31]} 72. Ke7+ {[%emt 0:01:04]} Kf3 {[%emt 0:00:18]} 73. Qc3+ {[%emt 0:01:01]} Kg2 {[%emt 0:00:24]} 74. Qc2 {[%emt 0:00:50]} Kf1 {[%emt 0:00:12]} 75. Qxe2+ {[%emt 0:00:42]} Kxe2 {[%emt 0:00:01]} 76. Kf6 {[%emt 0:00:11]} 1/2-1/2

[Event "GER-ch Youth-U18w 2022"]
[Site "Willingen"]
[Date "2022.06.11"]
[Round "9.5"]
[White "Dietz, Kristin"]
[Black "Yue, Qizhou"]
[Result "1-0"]
[ECO "B42"]
[WhiteElo "1707"]
[BlackElo "1715"]
[Annotator "NA RC COMBH"]
[PlyCount "64"]
[EventDate "2022.06.05"]
[EventType "swiss"]
[EventRounds "9"]
[EventCountry "GER"]
[SourceTitle "playchess.com"]
[Source "ChessBase"]
[SourceQuality "1"]
[TimeControl "40/4500+30:900+30"]

1. e4 {[%emt 0:00:00]} c5 {[%emt 0:00:00]} 2. Nf3 {[%emt 0:00:00]} e6 {[%emt 0:00:00]} 3. d4 {[%emt 0:00:00]} cxd4 {[%emt 0:00:00]} 4. Nxd4 {[%emt 0:00:00]} a6 {[%emt 0:00:00]} 5. Bd3 {[%emt 0:00:00]} Qc7 {[%emt 0:00:00]} 6. f4 {[%emt 0:00:00]} d6 {[%emt 0:00:00]} 7. Qf3 {[%emt 0:00:00]} Nc6 {[%emt 0:00:00]} 8. Be3 {[%emt 0:00:00]} Nf6 {[%emt 0:00:00]} 9. Nc3 {[%emt 0:06:32]} Be7 {[%emt 0:00:00]} 10. Nb3 {[%emt 0:04:00]} b5 {[%emt 0:06:45]} 11. g4 {[%emt 0:04:18]} Bb7 {[%emt 0:01:17]} 12. g5 {[%emt 0:00:31]} Nd7 {[%emt 0:00:26]} 13. Qh3 {[%emt 0:08:15]} b4 {[%emt 0:27:55]} 14. Ne2 {[%emt 0:02:24]} Nd8 {[%emt 0:10:03]} 15. Nbd4 {[%emt 0:03:00]} d5 {[%emt 0:02:31]} 16. e5 {[%emt 0:01:43]} g6 {[%emt 0:03:24]} 17. Qf3 {[%emt 0:08:08]} Nc5 {[%emt 0:04:41]} 18. h4 {[%emt 0:01:13]} h5 {[%emt 0:02:42]} 19. gxh6 {[%emt 0:02:32]} Rxh6 {[%emt 0:00:26]} 20. h5 {[%emt 0:01:58]} Rxh5 {[%emt 0:02:57]} 21. Rxh5 {[%emt 0:06:54]} gxh5 {[%emt 0:00:10]} 22. Qxh5 {[%emt 0:00:12]} Kd7 {[%emt 0:04:01]} 23. f5 {[%emt 0:02:11]} Nxd3+ {[%emt 0:03:52]} 24. cxd3 {[%emt 0:00:12]} exf5 {[%emt 0:00:41]} 25. Qxf5+ {[%emt 0:06:48]} Ke8 26. Kd2 {[%emt 0:02:15]} Bc8 {[%emt 0:04:15]} 27. Qh5 {[%emt 0:05:48]} Ne6 28. Rg1 {[%emt 0:00:31]} Bc5 {[%emt 0:05:06]} 29. Rg8+ {[%emt 0:01:36]} Nf8 {[%emt 0:02:33]} 30. Bh6 {[%emt 0:02:17]} Qb6 31. Bxf8 {[%emt 0:02:59]} Bxf8 {[%emt 0:00:39]} 32. e6 {[%emt 0:02:13]} Qb7 {[%emt 0:02:07]} 1-0